fUST/lending_fUST_20250215
["ID","MTS","AMOUNT","RATE_DAILY","PERIOD"]
[353091678,1739550638856,-3763.11,0.0001378,2]
[353091679,1739550638865,-199.30342082,0.0001378,2]
[353091680,1739550638875,-7478.04,0.0001378,2]
[353091681,1739550638885,-500.0,0.0001378,2]
[353091682,1739550638897,-500.0,0.0001378,2]
[353091683,1739550638907,-800.72,0.0001378,2]
[353091684,1739550638916,-1612.09,0.0001378,2]
[353091685,1739550638926,-500.0,0.0001378,2]
[353091686,1739550638935,-526.49,0.0001378,2]
[353091687,1739550638945,-511.474695,0.0001378,2]
[353091688,1739550638955,-500.0,0.0001378,2]
[353091689,1739550638965,-500.0,0.0001378,2]
[353091690,1739550638975,-500.0,0.0001378,2]
[353091691,1739550638984,-910.76,0.0001378,2]
[353091692,1739550638998,-1717.84,0.0001378,2]
[353091693,1739550639007,-500.0,0.0001378,2]
[353091694,1739550639017,-641.64,0.0001378,2]
[353091695,1739550639027,-500.0,0.0001378,2]
[353091696,1739550639038,-4727.27,0.0001378,2]
[353091697,1739550639049,-500.0,0.0001378,2]
[353091698,1739550639060,-500.0,0.0001378,2]
[353091699,1739550639073,-500.0,0.0001378,2]
[353091700,1739550639083,-500.0,0.0001378,2]
[353091701,1739550639092,-500.0,0.0001378,2]
[353091702,1739550639102,-500.0,0.0001378,2]
[353091703,1739550639112,-500.0,0.0001378,2]
[353091704,1739550639122,-840.77,0.0001378,2]
[353091705,1739550639132,-2846.85,0.0001378,2]
[353091706,1739550639142,-500.0,0.0001378,2]
[353091707,1739550639152,-4055.69,0.0001378,2]
[353091708,1739550639162,-500.0,0.0001378,2]
[353091709,1739550639172,-990.82,0.0001378,2]
[353091710,1739550639182,-500.0,0.0001378,2]
[353091711,1739550639192,-154.666516,0.000138,2]
[353091712,1739550639203,-151.0,0.000138,2]
[353091713,1739550639214,-151.0,0.000138,2]
[353091714,1739550639225,-151.0,0.000138,2]
[353091715,1739550639234,-151.0,0.000138,2]
[353091716,1739550639244,-151.0,0.000138,2]
[353091717,1739550639254,-151.0,0.000138,2]
[353091718,1739550639382,-151.0,0.000138,2]
[353091719,1739550639393,-151.0,0.000138,2]
[353091720,1739550639402,-50764.36989485,0.000138,2]
[353091721,1739550639414,-411.03941818,0.00013827,2]
[353091722,1739550639423,-2073.30153446,0.00013845,2]
[353091723,1739550639435,-2073.30153446,0.00013845,2]
[353091724,1739550639444,-2073.30153446,0.00013845,2]
[353091725,1739550639454,-2073.30153446,0.00013845,2]
[353091726,1739550639467,-2073.30153446,0.00013845,2]
[353091727,1739550639476,-2073.30153446,0.00013845,2]
[353091728,1739550639486,-2073.30153446,0.00013845,2]
[353091729,1739550639495,-2073.30153446,0.00013845,2]
[353091730,1739550639505,-2073.30153446,0.00013845,2]
[353091731,1739550639515,-2073.30153446,0.00013845,2]
[353091732,1739550639525,-2073.30153446,0.00013845,2]
[353091733,1739550639535,-2073.30153446,0.00013845,2]
[353091734,1739550639546,-2073.30153446,0.00013845,2]
[353091735,1739550639557,-2073.30153446,0.00013845,2]
[353091736,1739550639568,-2073.30153446,0.00013845,2]
[353091737,1739550639578,-2073.30153446,0.00013845,2]
[353091738,1739550639588,-2073.30153446,0.00013845,2]
[353091739,1739550639598,-2073.30153446,0.00013845,2]
[353091740,1739550639607,-2073.30153446,0.00013845,2]
[353091741,1739550639617,-2073.3,0.00013845,2]
[353091742,1739550639627,-644.63815003,0.00013845,2]
[353091743,1739550639641,-644.63815003,0.00013845,2]
[353091744,1739550639651,-644.63815003,0.00013845,2]
[353091745,1739550639660,-644.63815003,0.00013845,2]
[353091746,1739550639670,-644.63815003,0.00013845,2]
[353091747,1739550639681,-644.63815003,0.00013845,2]
[353091748,1739550639691,-644.63815003,0.00013845,2]
[353091749,1739550639702,-644.63815003,0.00013845,2]
[353091750,1739550639712,-644.63815003,0.00013845,2]
[353091751,1739550639721,-644.63815003,0.00013845,2]
[353091752,1739550639731,-644.63815003,0.00013845,2]
[353091753,1739550639743,-644.63815003,0.00013845,2]
[353091754,1739550639753,-644.63815003,0.00013845,2]
[353091755,1739550639763,-644.63815003,0.00013845,2]
[353091756,1739550639772,-644.63815003,0.00013845,2]
[353091757,1739550639782,-644.63815003,0.00013845,2]
[353091758,1739550639792,-644.63815003,0.00013845,2]
[353091759,1739550639802,-644.63815003,0.00013845,2]
[353091760,1739550639812,-644.63815003,0.00013845,2]
[353091761,1739550639826,-644.63,0.00013845,2]
[353091762,1739550639835,-1420.55364761,0.00013845,2]
[353091763,1739550639846,-226.63372447,0.00013862,2]
[353091764,1739550639855,-500.0,0.00013862,2]
[353091765,1739550639865,-232.87376278,0.00013862,2]
[353091766,1739550639875,-500.0,0.00013862,2]
[353091767,1739550639885,-500.0,0.00013862,2]
[353091768,1739550639895,-500.0,0.00013863,2]
[353091769,1739550639905,-500.0,0.00013863,2]
[353091770,1739550639914,-500.0,0.00013863,2]
[353091771,1739550639924,-500.0,0.00013863,2]
[353091772,1739550639934,-500.0,0.00013863,2]
[353091773,1739550639943,-500.0,0.00013863,2]
[353091774,1739550639953,-500.0,0.00013863,2]
[353091775,1739550639962,-308.61843822,0.00013863,2]
[353091776,1739550639972,-539.27747744,0.00013863,2]
[353091777,1739550639981,-500.0,0.00013863,2]
[353091779,1739550639992,-500.0,0.00013863,2]
[353091780,1739550640005,-500.0,0.00013863,2]
[353091781,1739550640015,-467.13,0.00013863,2]
[353091782,1739550640024,-796.11,0.00013863,2]
[353091783,1739550640034,-500.0,0.00013863,2]
[353091784,1739550640043,-866.8,0.00013863,2]
[353091785,1739550640053,-500.0,0.00013863,2]
[353091786,1739550640064,-500.0,0.00013863,2]
[353091787,1739550640079,-445.03882441,0.00013863,2]
[353091788,1739550640089,-644.20031535,0.00013863,2]
[353091789,1739550640100,-366.21379889,0.00013863,2]
[353091790,1739550640110,-500.0,0.00013863,2]
[353091791,1739550640121,-500.0,0.00013863,2]
[353091792,1739550640132,-532.91,0.00013863,2]
[353091793,1739550640142,-500.0,0.00013863,2]
[353091794,1739550640152,-500.0,0.00013863,2]
[353091795,1739550640162,-500.0,0.00013863,2]
[353091796,1739550640172,-1399.2,0.00013863,2]
[353091797,1739550640183,-500.0,0.00013863,2]
[353091798,1739550640193,-500.0,0.00013863,2]
[353091799,1739550640202,-1557.52,0.00013863,2]
[353091800,1739550640213,-500.0,0.00013863,2]
[353091801,1739550640222,-687.06,0.00013863,2]
[353091802,1739550640233,-500.0,0.00013863,2]
[353091804,1739550640243,-1273.73,0.00013863,2]
[353091805,1739550640253,-563.32,0.00013863,2]
[353091806,1739550640263,-500.0,0.00013863,2]
[353091807,1739550640273,-500.0,0.00013863,2]
[353091808,1739550640283,-500.0,0.00013863,2]
[353091809,1739550640292,-389.23331639,0.00013863,2]
[353091810,1739550640302,-500.0,0.00013863,2]
[353091812,1739550640312,-500.0,0.00013863,2]
[353091813,1739550640324,-500.0,0.00013863,2]
[353091815,1739550640333,-500.0,0.00013863,2]
[353091817,1739550640342,-500.0,0.00013863,2]
[353091818,1739550640352,-500.0,0.00013863,2]
[353091820,1739550640361,-500.0,0.00013863,2]
[353091821,1739550640370,-500.0,0.00013863,2]
[353091822,1739550640379,-271.62,0.00013863,2]
[353091823,1739550640389,-646.18,0.00013863,2]
[353091824,1739550640398,-500.0,0.00013863,2]
[353091825,1739550640407,-500.0,0.00013863,2]
[353091826,1739550640416,-500.0,0.00013863,2]
[353091827,1739550640426,-500.0,0.00013863,2]
[353091828,1739550640435,-1566.06,0.00013863,2]
[353091829,1739550640444,-500.0,0.00013863,2]
[353091830,1739550640454,-616.73,0.00013863,2]
[353091831,1739550640464,-500.0,0.00013863,2]
[353091832,1739550640474,-500.0,0.00013863,2]
[353091833,1739550640484,-760.63,0.00013863,2]
[353091835,1739550640493,-500.0,0.00013863,2]
[353091836,1739550640502,-1191.39,0.00013863,2]
[353091837,1739550640512,-500.0,0.00013863,2]
[353091838,1739550640522,-500.0,0.00013863,2]
[353091839,1739550640532,-500.0,0.00013863,2]
[353091840,1739550640543,-500.0,0.00013863,2]
[353091841,1739550640552,-500.0,0.00013863,2]
[353091842,1739550640561,-500.0,0.00013863,2]
[353091843,1739550640573,-500.0,0.00013863,2]
[353091844,1739550640583,-502.91356902,0.00013863,2]
[353091845,1739550640592,-500.0,0.00013863,2]
[353091846,1739550640602,-754.59,0.00013863,2]
[353091847,1739550640611,-1160.03,0.00013863,2]
[353091848,1739550640621,-668.49,0.00013863,2]
[353091849,1739550640630,-500.0,0.00013863,2]
[353091850,1739550640640,-500.0,0.00013863,2]
[353091851,1739550640650,-3474.65,0.00013863,2]
[353091852,1739550640660,-500.0,0.00013863,2]
[353091853,1739550640669,-500.0,0.00013863,2]
[353091854,1739550640679,-500.0,0.00013863,2]
[353091855,1739550640690,-7962.99,0.00013863,2]
[353091856,1739550640700,-500.0,0.00013863,2]
[353091857,1739550640710,-500.0,0.00013863,2]
[353091858,1739550640720,-1760.3,0.00013863,2]
[353091859,1739550640731,-500.0,0.00013863,2]
[353091860,1739550640742,-500.0,0.00013863,2]
[353091861,1739550640752,-2160.93,0.00013863,2]
[353091862,1739550640763,-633.77,0.00013863,2]
[353091864,1739550640772,-500.0,0.00013863,2]
[353091866,1739550640782,-547.56,0.00013863,2]
[353091867,1739550640791,-1287.8,0.00013863,2]
[353091869,1739550640800,-500.0,0.00013863,2]
[353091870,1739550640810,-3336.24,0.00013863,2]
[353091872,1739550640823,-500.0,0.00013863,2]
[353091874,1739550640833,-500.0,0.00013863,2]
[353091876,1739550640842,-1973.1,0.00013863,2]
[353091880,1739550640853,-500.0,0.00013863,2]
[353091881,1739550640863,-14642.52,0.00013863,2]
[353091883,1739550640872,-1213.41,0.00013863,2]
[353091885,1739550640882,-500.0,0.00013863,2]
[353091887,1739550640892,-47713.74,0.00013863,2]
[353091889,1739550640902,-966.72,0.00013863,2]
[353091890,1739550640911,-1774.51,0.00013863,2]
[353091892,1739550640921,-5695.63,0.00013863,2]
[353091894,1739550640931,-530.11,0.00013863,2]
[353091896,1739550640941,-1362.7,0.00013863,2]
[353091897,1739550640951,-500.0,0.00013863,2]
[353091898,1739550640960,-500.0,0.00013863,2]
[353091899,1739550640970,-20031.89,0.00013863,2]
[353091900,1739550640980,-500.0,0.00013863,2]
[353091901,1739550640991,-1314.82,0.00013863,2]
[353091902,1739550641002,-2314.95,0.00013863,2]
[353091903,1739550641011,-500.0,0.00013863,2]
[353091904,1739550641021,-2118.63,0.00013863,2]
[353091905,1739550641032,-2150.29,0.00013863,2]
[353091906,1739550641041,-1421.65,0.00013863,2]
[353091907,1739550641050,-500.0,0.00013863,2]
[353091908,1739550641059,-500.0,0.00013863,2]
[353091909,1739550641071,-500.0,0.00013863,2]
[353091910,1739550641081,-500.0,0.00013863,2]
[353091911,1739550641091,-500.0,0.00013863,2]
[353091912,1739550641100,-500.0,0.00013863,2]
[353091913,1739550641110,-500.0,0.00013863,2]
[353091914,1739550641120,-4068.79,0.00013863,2]
[353091915,1739550641130,-500.0,0.00013863,2]
[353091916,1739550641140,-540.56,0.00013863,2]
[353091917,1739550641149,-832.57,0.00013863,2]
[353091918,1739550641160,-1448.71,0.00013863,2]
[353091919,1739550641171,-3763.11,0.00013863,2]
[353091920,1739550641181,-7478.04,0.00013863,2]
[353091921,1739550641191,-151.0,0.00013863,2]
[353091922,1739550641200,-151.0,0.00013863,2]
[353091923,1739550641210,-500.0,0.00013863,2]
[353091924,1739550641219,-800.72,0.00013863,2]
[353091925,1739550641229,-1612.09,0.00013863,2]
[353091926,1739550641239,-500.0,0.00013863,2]
[353091927,1739550641248,-151.155619,0.00013863,2]
[353091928,1739550641257,-526.49,0.00013863,2]
[353091929,1739550641267,-500.0,0.00013863,2]
[353091930,1739550641276,-151.0,0.00013863,2]
[353091931,1739550641286,-151.0,0.00013863,2]
[353091932,1739550641295,-500.0,0.00013863,2]
[353091933,1739550641306,-203.72047,0.00013863,2]
[353091934,1739550641315,-500.0,0.00013863,2]
[353091935,1739550641327,-151.0,0.00013863,2]
[353091936,1739550641336,-910.76,0.00013863,2]
[353091937,1739550641346,-1717.84,0.00013863,2]
[353091938,1739550641357,-500.0,0.00013863,2]
[353091939,1739550641366,-169.150343,0.00013863,2]
[353091940,1739550641376,-203.72047,0.00013863,2]
[353091941,1739550641386,-641.64,0.00013863,2]
[353091942,1739550641396,-245.52649207,0.00013863,2]
[353091943,1739550641406,-4727.27,0.00013863,2]
[353091944,1739550641416,-169.150343,0.00013863,2]
[353091945,1739550641425,-212.33659752,0.00013863,2]
[353091946,1739550641437,-500.0,0.00013863,2]
[353091947,1739550641448,-500.0,0.00013863,2]
[353091948,1739550641458,-840.77,0.00013863,2]
[353091949,1739550641467,-2846.85,0.00013863,2]
[353091950,1739550641477,-500.0,0.00013863,2]
[353091951,1739550641487,-4055.69,0.00013863,2]
[353091952,1739550641497,-151.0,0.00013863,2]
[353091953,1739550641507,-990.82,0.00013863,2]
[353091954,1739550641517,-151.0,0.00013863,2]
[353091955,1739550641526,-191.67532591,0.00013863,2]
[353091956,1739550641537,-500.0,0.00013863,2]
[353091957,1739550641548,-151.0,0.000139,2]
[353091958,1739550641557,-151.0,0.000139,2]
[353091959,1739550641568,-151.0,0.000139,2]
[353091960,1739550641577,-151.0,0.000139,2]
[353091961,1739550641587,-151.0,0.000139,2]
[353091962,1739550641597,-151.0,0.000139,2]
[353091963,1739550641607,-151.0,0.000139,2]
[353091964,1739550641716,-151.0,0.000139,2]
[353091965,1739550641726,-151.0,0.000139,2]
[353091966,1739550641735,-153.0,0.00013903,2]
[353091967,1739550641746,-153.0,0.00013903,2]
[353091968,1739550641756,-153.0,0.00013903,2]
[353091969,1739550641766,-153.0,0.00013903,2]
[353091970,1739550641776,-153.0,0.00013903,2]
[353091971,1739550641785,-6510.98393686,0.00013927,2]
[353091972,1739550641795,-270.29521963,0.00013927,2]
[353091973,1739550641805,-270.29521963,0.00013927,2]
[353091974,1739550641814,-270.29521963,0.00013927,2]
[353091975,1739550641825,-270.29521963,0.00013927,2]
[353091976,1739550641835,-270.29521963,0.00013927,2]
[353091977,1739550641845,-270.29521963,0.00013927,2]
[353091978,1739550641854,-270.29521963,0.00013927,2]
[353091979,1739550641865,-270.29521963,0.00013927,2]
[353091980,1739550641875,-270.29521963,0.00013927,2]
[353091981,1739550641885,-270.29521963,0.00013927,2]
[353091982,1739550641896,-270.29521963,0.00013927,2]
[353091983,1739550641906,-270.29521963,0.00013927,2]
[353091984,1739550641916,-270.29521963,0.00013927,2]
[353091985,1739550641927,-270.29521963,0.00013927,2]
[353091986,1739550641937,-270.29521963,0.00013927,2]
[353091987,1739550641947,-270.29521963,0.00013927,2]
[353091988,1739550641956,-270.29521963,0.00013927,2]
[353091989,1739550641966,-270.29521963,0.00013927,2]
[353091990,1739550641976,-270.29521963,0.00013927,2]
[353091991,1739550641986,-270.29,0.00013927,2]
[353091992,1739550641997,-3000.0,0.00013927,2]
[353091993,1739550642009,-4837.70358041,0.00013927,2]
[353091994,1739550642020,-4837.70358041,0.00013927,2]
[353091995,1739550642029,-4837.70358041,0.00013927,2]
[353091996,1739550642040,-4837.70358041,0.00013927,2]
[353091997,1739550642051,-4837.70358041,0.00013927,2]
[353091998,1739550642060,-4837.70358041,0.00013927,2]
[353091999,1739550642071,-4837.70358041,0.00013927,2]
[353092000,1739550642081,-4837.70358041,0.00013927,2]
[353092001,1739550642090,-4837.70358041,0.00013927,2]
[353092002,1739550642100,-4837.70358041,0.00013927,2]
[353092003,1739550642110,-4837.70358041,0.00013927,2]
[353092004,1739550642119,-4837.70358041,0.00013927,2]
[353092005,1739550642129,-4837.70358041,0.00013927,2]
[353092006,1739550642139,-4837.70358041,0.00013927,2]
[353092007,1739550642149,-4837.70358041,0.00013927,2]
[353092008,1739550642159,-4837.70358041,0.00013927,2]
[353092009,1739550642168,-4837.70358041,0.00013927,2]
[353092010,1739550642179,-4837.70358041,0.00013927,2]
[353092011,1739550642188,-4837.70358041,0.00013927,2]
[353092012,1739550642198,-4837.7,0.00013927,2]
[353092013,1739550642207,-1504.1556834,0.00013927,2]
[353092014,1739550642217,-1504.1556834,0.00013927,2]
[353092015,1739550642227,-1504.1556834,0.00013927,2]
[353092016,1739550642237,-1504.1556834,0.00013927,2]
[353092017,1739550642246,-1504.1556834,0.00013927,2]
[353092018,1739550642256,-1504.1556834,0.00013927,2]
[353092019,1739550642266,-1504.1556834,0.00013927,2]
[353092020,1739550642276,-1504.1556834,0.00013927,2]
[353092021,1739550642286,-1504.1556834,0.00013927,2]
[353092022,1739550642296,-1504.1556834,0.00013927,2]
[353092023,1739550642306,-1504.1556834,0.00013927,2]
[353092024,1739550642315,-1504.1556834,0.00013927,2]
[353092025,1739550642326,-1504.1556834,0.00013927,2]
[353092026,1739550642335,-1504.1556834,0.00013927,2]
[353092027,1739550642345,-1504.1556834,0.00013927,2]
[353092028,1739550642354,-1504.1556834,0.00013927,2]
[353092029,1739550642364,-1504.1556834,0.00013927,2]
[353092030,1739550642373,-1504.1556834,0.00013927,2]
[353092031,1739550642383,-1504.1556834,0.00013927,2]
[353092032,1739550642392,-1504.15,0.00013927,2]
[353092033,1739550642402,-2059.9723717,0.00013936,2]
[353092034,1739550642412,-411.03941818,0.00013942,2]
[353092035,1739550642422,-500.0,0.00013945,2]
[353092036,1739550642432,-500.0,0.00013945,2]
[353092037,1739550642442,-182.41134264,0.00013945,2]
[353092038,1739550642452,-500.0,0.00013945,2]
[353092039,1739550642464,-500.0,0.00013945,2]
[353092040,1739550642474,-796.11,0.00013945,2]
[353092041,1739550642485,-500.0,0.00013945,2]
[353092042,1739550642496,-866.8,0.00013945,2]
[353092043,1739550642506,-500.0,0.00013945,2]
[353092044,1739550642515,-500.0,0.00013945,2]
[353092045,1739550642525,-437.36013187,0.00013945,2]
[353092046,1739550642535,-500.0,0.00013945,2]
[353092047,1739550642545,-532.91,0.00013945,2]
[353092048,1739550642555,-500.0,0.00013945,2]
[353092049,1739550642566,-562.60077828,0.00013945,2]
[353092050,1739550642580,-1399.2,0.00013945,2]
[353092051,1739550642590,-500.0,0.00013945,2]
[353092052,1739550642600,-500.0,0.00013945,2]
[353092053,1739550642611,-500.0,0.00013945,2]
[353092054,1739550642621,-1557.52,0.00013945,2]
[353092055,1739550642631,-500.0,0.00013945,2]
[353092056,1739550642642,-687.06,0.00013945,2]
[353092057,1739550642651,-500.0,0.00013945,2]
[353092058,1739550642661,-1273.73,0.00013945,2]
[353092059,1739550642671,-563.32,0.00013945,2]
[353092060,1739550642682,-500.0,0.00013945,2]
[353092061,1739550642692,-500.0,0.00013945,2]
[353092062,1739550642701,-527.87,0.00013945,2]
[353092063,1739550642711,-500.0,0.00013945,2]
[353092064,1739550642721,-268.9691924,0.00013945,2]
[353092065,1739550642733,-151.0,0.00013945,2]
[353092066,1739550642743,-500.0,0.00013945,2]
[353092067,1739550642754,-507.42529487,0.00013945,2]
[353092068,1739550642764,-151.0,0.00013945,2]
[353092069,1739550642773,-646.18,0.00013945,2]
[353092070,1739550642783,-500.0,0.00013945,2]
[353092071,1739550642793,-500.0,0.00013945,2]
[353092072,1739550642802,-500.0,0.00013945,2]
[353092073,1739550642811,-151.0,0.00013945,2]
[353092074,1739550642824,-500.0,0.00013945,2]
[353092075,1739550642834,-151.0,0.00013945,2]
[353092076,1739550642843,-151.0,0.00013945,2]
[353092077,1739550642855,-1566.06,0.00013945,2]
[353092078,1739550642865,-500.0,0.00013945,2]
[353092079,1739550642875,-616.73,0.00013945,2]
[353092080,1739550642885,-500.0,0.00013945,2]
[353092081,1739550642895,-151.0,0.00013945,2]
[353092082,1739550642905,-500.0,0.00013945,2]
[353092083,1739550642915,-760.63,0.00013945,2]
[353092084,1739550642925,-500.0,0.00013945,2]
[353092085,1739550642935,-1191.39,0.00013945,2]
[353092086,1739550642945,-500.0,0.00013945,2]
[353092087,1739550642955,-151.0,0.00013945,2]
[353092088,1739550642964,-380.579701,0.00013945,2]
[353092089,1739550642975,-500.0,0.00013945,2]
[353092090,1739550642984,-380.579701,0.00013945,2]
[353092091,1739550642998,-227.4,0.00013945,2]
[353092092,1739550643008,-151.0,0.00013945,2]
[353092093,1739550643018,-151.0,0.00013945,2]
[353092094,1739550643028,-500.0,0.00013945,2]
[353092095,1739550643039,-151.0,0.00013945,2]
[353092097,1739550643049,-500.0,0.00013945,2]
[353092099,1739550643059,-754.59,0.00013945,2]
[353092101,1739550643072,-151.0,0.00013945,2]
[353092103,1739550643082,-1160.03,0.00013945,2]
[353092105,1739550643092,-668.49,0.00013945,2]
[353092106,1739550643101,-482.59982821,0.00013945,2]
[353092107,1739550643110,-500.0,0.00013945,2]
[353092108,1739550643121,-3474.65,0.00013945,2]
[353092109,1739550643132,-500.0,0.00013945,2]
[353092110,1739550643142,-500.0,0.00013945,2]
[353092111,1739550643152,-7962.99,0.00013945,2]
[353092112,1739550643163,-500.0,0.00013945,2]
[353092113,1739550643172,-500.0,0.00013945,2]
[353092114,1739550643182,-1760.3,0.00013945,2]
[353092115,1739550643194,-500.0,0.00013945,2]
[353092116,1739550643203,-151.0,0.00013945,2]
[353092118,1739550643213,-500.0,0.00013945,2]
[353092119,1739550643223,-2160.93,0.00013945,2]
[353092120,1739550643233,-633.77,0.00013945,2]
[353092121,1739550643243,-348.846146,0.00013945,2]
[353092122,1739550643253,-151.0,0.00013945,2]
[353092124,1739550643263,-500.0,0.00013945,2]
[353092125,1739550643273,-547.56,0.00013945,2]
[353092126,1739550643283,-410.18113,0.00013945,2]
[353092127,1739550643293,-1287.8,0.00013945,2]
[353092128,1739550643303,-410.18113,0.00013945,2]
[353092129,1739550643312,-500.0,0.00013945,2]
[353092131,1739550643323,-3336.24,0.00013945,2]
[353092132,1739550643333,-500.0,0.00013945,2]
[353092133,1739550643343,-500.0,0.00013945,2]
[353092134,1739550643353,-500.0,0.00013945,2]
[353092135,1739550643363,-1973.1,0.00013945,2]
[353092136,1739550643372,-14642.52,0.00013945,2]
[353092137,1739550643382,-1213.41,0.00013945,2]
[353092138,1739550643393,-151.0,0.00013945,2]
[353092139,1739550643404,-527.090084,0.00013945,2]
[353092140,1739550643414,-500.0,0.00013945,2]
[353092141,1739550643424,-47713.74,0.00013945,2]
[353092143,1739550643433,-527.090084,0.00013945,2]
[353092144,1739550643443,-182.53262,0.00013945,2]
[353092145,1739550643451,-966.72,0.00013945,2]
[353092146,1739550643461,-1774.51,0.00013945,2]
[353092147,1739550643471,-182.53262,0.00013945,2]
[353092149,1739550643480,-5695.63,0.00013945,2]
[353092150,1739550643489,-530.11,0.00013945,2]
[353092151,1739550643499,-1362.7,0.00013945,2]
[353092152,1739550643508,-503.57087519,0.00013945,2]
[353092153,1739550643520,-500.0,0.00013945,2]
[353092154,1739550643530,-20031.89,0.00013945,2]
[353092155,1739550643540,-1314.82,0.00013945,2]
[353092156,1739550643551,-2314.95,0.00013945,2]
[353092157,1739550643560,-500.0,0.00013945,2]
[353092158,1739550643572,-2118.63,0.00013945,2]
[353092159,1739550643582,-1421.65,0.00013945,2]
[353092160,1739550643592,-2150.29,0.00013945,2]
[353092161,1739550643601,-500.0,0.00013945,2]
[353092162,1739550643611,-500.0,0.00013945,2]
[353092163,1739550643620,-1552.083086,0.00013945,2]
[353092164,1739550643630,-287.862824,0.00013945,2]
[353092165,1739550643640,-500.0,0.00013945,2]
[353092166,1739550643650,-500.0,0.00013945,2]
[353092167,1739550643659,-500.0,0.00013945,2]
[353092168,1739550643672,-287.862824,0.00013945,2]
[353092169,1739550643682,-1552.083086,0.00013945,2]
[353092170,1739550643691,-500.0,0.00013945,2]
[353092171,1739550643701,-1074.304975,0.00013945,2]
[353092172,1739550643712,-1074.304975,0.00013945,2]
[353092173,1739550643722,-500.0,0.00013945,2]
[353092174,1739550643731,-4068.79,0.00013945,2]
[353092175,1739550643742,-500.0,0.00013945,2]
[353092176,1739550643752,-540.56,0.00013945,2]
[353092177,1739550643763,-236.482875,0.00013945,2]
[353092178,1739550643773,-832.57,0.00013945,2]
[353092179,1739550643873,-236.482875,0.00013945,2]
[353092180,1739550643884,-1448.71,0.00013945,2]
[353092181,1739550643895,-3763.11,0.00013945,2]
[353092182,1739550643905,-7478.04,0.00013945,2]
[353092183,1739550643915,-151.0,0.00013945,2]
[353092184,1739550643926,-151.0,0.00013945,2]
[353092185,1739550643936,-500.0,0.00013945,2]
[353092186,1739550643946,-151.0,0.00013945,2]
[353092187,1739550643956,-800.72,0.00013945,2]
[353092188,1739550643966,-1612.09,0.00013945,2]
[353092189,1739550643976,-500.0,0.00013945,2]
[353092190,1739550643986,-151.0,0.00013945,2]
[353092191,1739550644000,-526.49,0.00013945,2]
[353092192,1739550644010,-500.0,0.00013945,2]
[353092193,1739550644020,-151.0,0.00013945,2]
[353092194,1739550644029,-151.0,0.00013945,2]
[353092195,1739550644040,-500.0,0.00013945,2]
[353092196,1739550644050,-203.72047,0.00013945,2]
[353092197,1739550644059,-500.0,0.00013945,2]
[353092198,1739550644070,-184.840428,0.00013945,2]
[353092199,1739550644081,-910.76,0.00013945,2]
[353092200,1739550644091,-1717.84,0.00013945,2]
[353092201,1739550644100,-169.150343,0.00013945,2]
[353092202,1739550644109,-203.72047,0.00013945,2]
[353092203,1739550644119,-641.64,0.00013945,2]
[353092204,1739550644128,-4727.27,0.00013945,2]
[353092205,1739550644138,-169.150343,0.00013945,2]
[353092206,1739550644148,-500.0,0.00013945,2]
[353092207,1739550644157,-500.0,0.00013945,2]
[353092208,1739550644167,-840.77,0.00013945,2]
[353092209,1739550644176,-2846.85,0.00013945,2]
[353092210,1739550644186,-500.0,0.00013945,2]